Cogmind - Beta 10.2 @@@ ROGUE MODE // 2021.02.09 @ 21:14:03 Player: Zailor Result: Destroyed by 1V-9CG(Y) with Heavy Autocannon Performance ------------- Evolutions (5) 2500 Regions Visited (18) 3600 Robots Destroyed (107) 535 Value Destroyed (5139) 5139 Prototype IDs (23) 460 Alien Tech Used (0) 0 Bonus (2709) 2709 TOTAL SCORE: 14943 Bonus ------- High Alert Combat Kills 59 Follower Combat Kills 623 Entered Garrisons 600 Used RIF Installer 1500 Aligned with FarCom 300 Friendly Fire -373 Cogmind --------- Core Integrity 0/1000 Matter 270/300 Energy 50/100 System Corruption 0% Temperature Cool (163) Movement Core (550) Ox10 Location -5/Warlord Parts ------- > --- POWER (1) -------- (None) > --- PROPULSION (3) --- (None) > --- UTILITY (11) ----- High-capacity Storage Unit Enhanced Optical Array Advanced Terrain Scan Processor Improved Core Analyzer Improved Transmission Jammer Improved Hacking Suite Relay Coupler [Swarmer] (13) Relay Coupler [Swarmer] (49) Relay Coupler [Brawler] (37) Relay Coupler [Sentry] (19) > --- WEAPON (2) ------- (None) > --- INVENTORY (12) --- Power Amplifier Improved Coolant Injector Advanced Terrain Scanner Advanced Shield Generator Relay Coupler [Demolisher] (27) Relay Coupler [Specialist] (25) Relay Coupler [Hunter] (20) Improved Remote Datajack Makeshift Hammer Peak State ------------ > --- POWER ------------ Micro Fission Core > --- PROPULSION ------- Improved Medium Treads Carbon-fiber Leg Flexi-carbon Leg > --- UTILITY ---------- Large Storage Unit High-capacity Storage Unit Enhanced Optical Array Advanced Terrain Scan Processor Improved Core Analyzer Improved Transmission Jammer Improved Medium Armor Plating Makeshift Hacking Suite Relay Coupler [Swarmer] Relay Coupler [Grunt] Relay Coupler [Sentry] > --- WEAPON ----------- KE Penetrator Improved Remote Datajack > --- INVENTORY -------- Light Angular Momentum Engine Armored Wheel Power Amplifier Improved Coolant Injector Advanced Terrain Scanner Advanced Shield Generator Improved Hacking Suite Relay Coupler [Swarmer] Relay Coupler [Grunt] Relay Coupler [Brawler] Relay Coupler [Demolisher] Relay Coupler [Specialist] Relay Coupler [Specialist] Relay Coupler [Hunter] KE Penetrator Proton Missile Launcher Improved Remote Datajack Makeshift Hammer [Rating: 78] Favorites ----------- Power Light Nuclear Core Engine Light Angular Momentum Engine Power Core Light Nuclear Core Propulsion Carbon-fiber Leg Treads Light Treads Leg Carbon-fiber Leg Wheel Armored Wheel Utility Large Storage Unit Device Heat Sink Storage Large Storage Unit Processor Enhanced Optical Array Hackware Relay Coupler [Grunt] Protection Hardened Medium Armor Plating Weapon Heavy Assault Rifle Energy Gun Beam Rifle Ballistic Gun Heavy Assault Rifle Launcher Grenade Launcher Special Weapon Remote Datajack Slashing Weapon Scythe Special Melee Weapon Improved Datajack Build | -11 -10 -10 -9 -9 -9 -8 -8 -8 -8 -7 -7 -7 -6 -6 -5 -5 -5 -5 ------- Run | Scr Mat Min Mat Min Exi Min Mat Gar Mat Fac Gar Fac Fac Gar Fac Upp Upp War Slots Evolved 10 | . . . 2 . . . 2 . . 2 . . 2 . 2 . . . Power . | . . . . . . . . . . . . . . . . . . . Propulsion 1 | . . . . . . . 1 . . . . . . . . . . . Utility 9 | . . . 2 . . . 1 . . 2 . . 2 . 2 . . . Weapon . | . . . . . . . . . . . . . . . . . . . Parts Attached 227 | 6 9 10 8 5 3 4 24 26 8 5 25 16 13 28 13 9 11 4 Power 26 | 1 2 3 1 . . . 2 2 2 1 2 1 1 1 3 3 1 . Engine 12 | 1 2 3 . . . . 2 1 . . 1 . . . 1 . 1 . Core 14 | . . . 1 . . . . 1 2 1 1 1 1 1 2 3 . . Reactor . | . . . . . . . . . . . . . . . . . . . Propulsion 49 | 2 2 2 2 1 . 2 6 7 2 . 5 5 2 4 . 1 5 1 Treads 9 | . . . . . . . 4 4 . . . . . 1 . . . . Leg 39 | 2 2 2 2 1 . 2 2 3 2 . 5 5 2 3 . 1 5 . Wheel 1 | . . . . . . . . . . . . . . . . . . 1 Hover . | . . . . . . . . . . . . . . . . . . . Flight . | . . . . . . . . . . . . . . . . . . . Utility 66 | 1 4 . 3 . 3 . 5 6 . 3 5 4 5 12 4 3 5 3 Device 18 | . . . 2 . . . 3 3 . 1 2 . 3 . 1 . 3 . Storage 9 | 1 4 . . . 2 . . . . . . 1 . 1 . . . . Processor 9 | . . . 1 . . . 1 . . . . 3 1 . 2 . 1 . Hackware 20 | . . . . . . . 1 . . . 3 . 1 8 1 2 1 3 Protection 10 | . . . . . 1 . . 3 . 2 . . . 3 . 1 . . Artifact . | . . . . . . . . . . . . . . . . . . . Weapon 86 | 2 1 5 2 4 . 2 11 11 4 1 13 6 5 11 6 2 . . Energy Gun 19 | 2 1 3 1 . . . 1 3 . . 3 1 1 1 2 . . . Energy Cannon . | . . . . . . . . . . . . . . . . . . . Ballistic Gun 36 | . . 1 1 2 . 1 5 7 2 1 5 2 2 4 1 2 . . Ballistic Cannon . | . . . . . . . . . . . . . . . . . . . Launcher 7 | . . 1 . 2 . 1 2 . . . . . . 1 . . . . Special Weapon 10 | . . . . . . . . . . . 2 2 1 3 2 . . . Impact Weapon . | . . . . . . . . . . . . . . . . . . . Slashing Weapon 12 | . . . . . . . 3 1 2 . 1 1 1 2 1 . . . Piercing Weapon . | . . . . . . . . . . . . . . . . . . . Special Melee Weapon 2 | . . . . . . . . . . . 2 . . . . . . . Unidentified Prototypes . | . . . . . . . . . . . . . . . . . . . Parts Lost 55 | . 2 8 3 . . . 2 8 . . 9 3 . 5 5 . . 10 Power 7 | . . 2 1 . . . . 1 . . 1 . . 1 . . . 1 Propulsion 16 | . 1 2 1 . . . . 1 . . 2 1 . 2 2 . . 4 Utility 9 | . . . . . . . . 2 . . 2 . . 1 1 . . 3 Weapon 23 | . 1 4 1 . . . 2 4 . . 4 2 . 1 2 . . 2 Highest Loss Streak 10 | . 2 3 3 . . . 2 4 . . 5 2 . 2 4 . . 10 Average Slot Usage (%) 95 | . 95 84 93 100 100 100 98 95 100 89 92 98 95 97 95 87 95 84 Engine 2 | . 14 12 3 . . . 2 5 . . 3 1 . . 3 . 2 3 Core 4 | . . . 6 11 11 11 6 3 9 7 3 5 6 5 . 3 2 . Treads 4 | . . . . . . . 19 13 . . . . . 1 5 5 2 . Leg 15 | . 27 27 22 22 22 22 5 11 27 23 22 22 20 17 9 2 11 13 Device 7 | . . . 11 11 11 11 12 10 9 11 11 . 5 . 4 5 7 10 Storage 16 | . 26 28 22 22 22 22 18 18 18 15 15 15 13 13 11 11 11 10 Processor 12 | . . . 10 11 6 . 5 9 9 7 7 21 22 26 24 20 17 17 Hackware 8 | . . . . . . . 8 . . . 9 15 12 16 19 19 18 12 Protection 3 | . . . . . 4 11 . 5 9 7 2 . . 1 . 2 5 3 Energy Gun 4 | . 24 6 6 11 11 11 2 3 . . 4 6 6 2 . . . . Ballistic Gun 7 | . . 8 10 9 11 8 9 14 17 15 7 2 3 . 1 5 5 4 Special Weapon 1 | . . . . . . . . . . . . 4 2 4 4 5 5 4 Slashing Weapon 1 | . . . . . . . 5 . . . . . . 2 3 . . . Naked Turns . | . . . . . . . . . . . . . . . . . . . Heaviest Build 75 | 12 41 41 44 44 47 47 48 55 51 62 62 60 62 67 68 70 75 75 Greatest Support 60 | 20 20 20 20 20 20 20 60 40 40 40 45 52 53 53 30 30 55 55 Greatest Overweight (x) 17 | 1 2 2 2 2 2 2 2 5 1 1 3 1 1 1 2 4 4 17 Average Overweight (x) 1 | . 1 1 1 2 2 2 . 1 1 1 1 1 1 1 1 2 1 1 Largest Inventory Capacity 18 | 6 16 16 16 16 16 16 16 16 16 16 16 18 18 18 18 18 18 18 Average Capacity 16 | 5 12 16 16 16 16 16 16 16 16 16 16 17 18 18 18 18 18 17 Most Carried 18 | 4 11 10 13 16 16 16 16 16 16 16 16 18 18 18 18 18 18 18 Average Carried 15 | 2 6 8 8 15 15 15 15 15 15 16 15 16 17 17 17 17 17 17 Final Capacity 18 | 6 16 16 16 16 16 16 16 16 16 16 16 18 18 18 18 18 18 12 Final Carried 18 | 4 9 7 13 16 16 16 16 16 16 16 16 18 18 18 18 18 18 9 Class Distribution -------------------- 60% | Bothacker-Mutant 25% | Scavenger-Mutant 6% | Mutant 3% | Scavenger-Skirmisher Dominant Class ---------------- Mutant | -10/Materials Mutant | -10/Mines Scavenger-Mutant | -9/Materials Scavenger-Mutant | -9/Mines Scavenger-Mutant | -9/Exiles Scavenger-Mutant | -8/Mines Scavenger-Mutant | -8/Materials Bothacker-Mutant | -8/Garrison Bothacker-Mutant | -8/Materials Bothacker-Mutant | -7/Factory Bothacker-Mutant | -7/Garrison Bothacker-Mutant | -7/Factory Bothacker-Mutant | -6/Factory Bothacker-Mutant | -6/Garrison Bothacker-Mutant | -5/Factory Bothacker-Mutant | -5/Upper Caves Bothacker-Mutant | -5/Upper Caves Bothacker-Mutant | -5/Warlord Resources | -11 -10 -10 -9 -9 -9 -8 -8 -8 -8 -7 -7 -7 -6 -6 -5 -5 -5 -5 ----------- Run | Scr Mat Min Mat Min Exi Min Mat Gar Mat Fac Gar Fac Fac Gar Fac Upp Upp War Matter Collected 4068 | 260 100 134 61 86 . 131 356 520 229 . 597 127 193 527 285 211 251 . Remotely . | . . . . . . . . . . . . . . . . . . . Salvage Created 3604 | 95 268 139 54 104 . 128 449 785 160 . 506 142 56 220 285 46 167 . Parts 227 | 2 20 6 4 13 . 19 35 48 7 . 26 4 3 9 20 2 9 . Haulers Intercepted . | . . . . . . . . . . . . . . . . . . . Recyclers Shooed 9 | . 4 . 2 . . . 1 . 1 . . . . . 1 . . . Parts Field Recycled . | . . . . . . . . . . . . . . . . . . . Retrieved Matter . | . . . . . . . . . . . . . . . . . . . Parts Self-Destructed 29 | . . . . . . . . . . . . . . . . 20 9 . Prevented . | . . . . . . . . . . . . . . . . . . . Kills | -11 -10 -10 -9 -9 -9 -8 -8 -8 -8 -7 -7 -7 -6 -6 -5 -5 -5 -5 ------- Run | Scr Mat Min Mat Min Exi Min Mat Gar Mat Fac Gar Fac Fac Gar Fac Upp Upp War Combat Hostiles Destroyed 103 | . 6 8 1 6 . 13 14 21 3 . 13 3 2 6 5 . 2 . Guns 81 | . 6 5 1 . . 6 11 21 3 . 12 3 2 4 5 . 2 . AOE 20 | . . 3 . 6 . 7 3 . . . . . . 1 . . . . Classes Destroyed 12 | 1 2 2 1 1 . . 3 1 . . 1 . . . . . . . Worker 2 | . 1 . . . . . 1 . . . . . . . . . . . Builder 1 | . . . . . . . 1 . . . . . . . . . . . Recycler 1 | 1 . . . . . . . . . . . . . . . . . . Watcher 1 | . . . . . . . 1 . . . . . . . . . . . Swarmer 48 | . . 3 . 4 . 13 6 8 . . 6 . 2 4 . 1 1 . Grunt 32 | . 6 2 . 1 . . 2 10 2 . 3 2 . 2 . . 2 . Brawler 1 | . . . . 1 . . . . . . . . . . . . . . Duelist 1 | . . . . . . . . 1 . . . . . . . . . . Sentry 9 | . . . 1 . . . 5 2 . . 1 . . . . . . . Hunter 5 | . . . . . . . 1 . 1 . 2 1 . . . . . . Programmer 6 | . . . . . . . . . . . 1 . . . 5 . . . Decomposer 1 | . . . . . . . . . . . . . . . . 1 . . Assembled 3 | . . 3 . . . . . . . . . . . . . . . . Best Kill Streak 5 | 1 3 3 1 4 . 4 5 5 2 . 3 2 2 4 2 . 1 . Combat Bots Only 5 | . 2 3 1 4 . 4 4 5 2 . 3 2 2 4 2 . 1 . Max Kills in Single Turn 4 | 1 1 2 1 4 . 3 2 1 1 . 1 1 1 1 1 1 1 . Gunslinging . | . . . . . . . . . . . . . . . . . . . Exploded 4 | . . 2 . 4 . 3 2 . . . . . . 1 . . . . Melee . | . . . . . . . . . . . . . . . . . . . Uniques/NPCs Destroyed . | . . . . . . . . . . . . . . . . . . . Combat | -11 -10 -10 -9 -9 -9 -8 -8 -8 -8 -7 -7 -7 -6 -6 -5 -5 -5 -5 -------- Run | Scr Mat Min Mat Min Exi Min Mat Gar Mat Fac Gar Fac Fac Gar Fac Upp Upp War Damage Taken 10566 | . 420 983 129 29 . 177 753 1571 524 . 1459 332 163 914 837 109 116 2050 Core 2169 | . 103 99 14 . . 39 86 206 95 . 220 63 47 137 100 7 . 953 Absorbed by Shields 98 | . . . . . . . . 30 . . 68 . . . . . . . Core Remaining (%) 61 | 100 . 19 . . . 86 . . 29 . . 59 . 78 . . . . Volleys Fired 415 | 1 26 45 7 5 . 16 30 83 19 . 55 12 10 50 30 12 14 . Largest 2 | 2 2 2 1 2 . 2 2 2 2 . 2 2 2 2 2 1 1 . Hottest 108 | 90 100 100 56 79 . 86 86 90 43 . 93 89 89 108 93 40 40 . Shots Fired 634 | 2 46 50 7 7 . 24 59 153 36 . 92 17 17 58 35 15 16 . Gun 545 | 2 46 48 7 5 . 20 53 153 36 . 90 15 14 21 22 4 9 . Cannon . | . . . . . . . . . . . . . . . . . . . Launcher 17 | . . 2 . 2 . 4 6 . . . . . . 3 . . . . Special 72 | . . . . . . . . . . . 2 2 3 34 13 11 7 . Kinetic 361 | . . 32 6 2 . 7 37 116 36 . 70 10 7 8 17 4 9 . Thermal 131 | 2 46 11 1 3 . 13 16 5 . . 12 2 7 13 . . . . Explosive 14 | . . 2 . 2 . 4 6 . . . . . . . . . . . Electromagnetic 56 | . . 5 . . . . . 32 . . 8 3 . 3 5 . . . Robot Hit Streak 19 | 2 7 8 6 2 . 3 19 13 6 . 16 17 9 8 11 3 4 . Robot Miss Streak 6 | . 6 5 1 2 . 4 3 4 1 . 6 2 3 4 4 4 2 . Penetration Max . | . . . . . . . . . . . . . . . . . . . Secondary Targets 16 | . . 1 . . . . 2 9 1 . 1 1 . . 1 . . . Max Gunslinging Chain 1 | . . 1 . . . . 1 1 1 . 1 1 . . 1 . . . Shots Hit Robots 442 | 2 28 26 6 4 . 10 49 105 28 . 71 13 12 38 32 7 11 . Core Hits 262 | 2 16 14 4 10 . 14 32 45 12 . 48 5 3 15 34 4 4 . Critical Hits 1 | . . . . . . . 1 . . . . . . . . . . . Critical Kills 1 | . . . . . . . 1 . . . . . . . . . . . Critical Parts Destroyed . | . . . . . . . . . . . . . . . . . . . Melee Attacks 36 | . . . . . . . 16 1 6 . 5 1 1 4 2 . . . Impact . | . . . . . . . . . . . . . . . . . . . Slashing 32 | . . . . . . . 16 1 6 . 1 1 1 4 2 . . . Piercing . | . . . . . . . . . . . . . . . . . . . Sneak Attacks 1 | . . . . . . . . . . . 1 . . . . . . . Combat Hostiles . | . . . . . . . . . . . . . . . . . . . Follow-up Attacks . | . . . . . . . . . . . . . . . . . . . Damage Inflicted 7103 | 23 337 441 67 344 . 448 1170 1312 289 . 1063 234 172 401 544 87 171 . Guns 5427 | 23 337 265 57 47 . 116 589 1266 289 . 1063 234 172 167 544 87 171 . Cannons . | . . . . . . . . . . . . . . . . . . . Explosions 1606 | . . 176 . 297 . 332 521 46 . . . . . 234 . . . . Melee 60 | . . . . . . . 60 . . . . . . . . . . . Ramming 10 | . . . 10 . . . . . . . . . . . . . . . Kinetic 3798 | . . 147 43 17 . . 414 946 289 . 891 159 57 52 525 87 171 . Thermal 1239 | 23 337 141 14 30 . 116 175 73 . . 82 18 115 115 . . . . Explosive 1260 | . . 110 . 297 . 332 521 . . . . . . . . . . . Electromagnetic 736 | . . 43 . . . . . 293 . . 90 57 . 234 19 . . . Impact . | . . . . . . . . . . . . . . . . . . . Slashing 60 | . . . . . . . 60 . . . . . . . . . . . Piercing . | . . . . . . . . . . . . . . . . . . . Highest Corruption 13 | . . 13 . . . . 3 3 3 . . 4 . . 9 9 9 11 Average Corruption 5 | . . 10 . . . . 2 3 3 . . 2 . . 6 9 9 10 Corruption Purged . | . . . . . . . . . . . . . . . . . . . Effects 158 | . . 17 . . . . 16 26 12 . . 10 . . 7 31 36 3 Message Errors 46 | . . 3 . . . . 6 8 2 . . 1 . . 2 9 14 1 Matter Fused 28 | . . 3 . . . . 5 5 2 . . 3 . . 1 3 6 . Heat Flow Errors 10 | . . 2 . . . . 1 . 1 . . 1 . . . 3 1 1 Energy Discharges 21 | . . 1 . . . . 1 5 3 . . . . . . 7 4 . Parts Rejected 2 | . . . . . . . . . . . . . . . 2 . . . Data Loss (minor) 23 | . . 1 . . . . 3 6 3 . . 5 . . . 2 3 . Data Loss (major) 8 | . . 1 . . . . . . . . . . . . 1 3 3 . Misfires 5 | . . . . . . . . . . . . . . . . 3 2 . Alerts 1 | . . 1 . . . . . . . . . . . . . . . . Misdirections 2 | . . 1 . . . . . . . . . . . . . . . 1 Targeting Errors 10 | . . 3 . . . . . 2 . . . . . . 1 1 3 . Weapon Failures 2 | . . 1 . . . . . . 1 . . . . . . . . . Overload Shots . | . . . . . . . . . . . . . . . . . . . Overflow Damage 52 | . . 11 . . . 9 4 28 . . . . . . . . . . Projectiles . | . . . . . . . . . . . . . . . . . . . Explosions 52 | . . 11 . . . 9 4 28 . . . . . . . . . . Melee . | . . . . . . . . . . . . . . . . . . . Knockbacks . | . . . . . . . . . . . . . . . . . . . Impact . | . . . . . . . . . . . . . . . . . . . Kinetic . | . . . . . . . . . . . . . . . . . . . Secondary . | . . . . . . . . . . . . . . . . . . . Self-Inflicted Damage 73 | . . 56 . 17 . . . . . . . . . . . . . . Shots 2 | . . 1 . 1 . . . . . . . . . . . . . . Rammed . | . . . . . . . . . . . . . . . . . . . Targets Rammed 1 | . . . 1 . . . . . . . . . . . . . . . Kicked 1 | . . . 1 . . . . . . . . . . . . . . . Crushed . | . . . . . . . . . . . . . . . . . . . Highest Temperature 700 | 30 253 322 . 1 . . 68 8 233 . 144 95 . 140 32 236 166 700 Average Temperature 111 | 18 102 172 . 1 . . 13 4 122 . 63 25 . 47 18 110 77 374 Received Heat Transfer 1797 | . 168 105 45 6 . . 243 630 126 . 198 135 . 102 . 15 24 . Effects 8 | . . 2 . . . . . . . . . . . . . . . 6 Energy Bleed 2 | . . 2 . . . . . . . . . . . . . . . . Damage (minor) 1 | . . . . . . . . . . . . . . . . . . 1 Damage (major) 4 | . . . . . . . . . . . . . . . . . . 4 Damage (core) 1 | . . . . . . . . . . . . . . . . . . 1 Siege Activations . | . . . . . . . . . . . . . . . . . . . Robots Corrupted 2 | . . . . . . . . . . . 1 . . 1 . . . . Combat Hostiles 2 | . . . . . . . . . . . 1 . . 1 . . . . Parts Fried 2 | . . . . . . . . . . . 2 . . . . . . . Impact Corruptions . | . . . . . . . . . . . . . . . . . . . Robots Melted . | . . . . . . . . . . . . . . . . . . . Combat Hostiles . | . . . . . . . . . . . . . . . . . . . Parts Melted 8 | . 2 . . . . 3 . . . . 1 . 1 1 . . . . Heat Transferred 2954 | 62 976 222 37 74 . 296 444 124 . . 185 37 222 275 . . . . Parts Sabotaged . | . . . . . . . . . . . . . . . . . . . Parts Stolen . | . . . . . . . . . . . . . . . . . . . Parts Stripped . | . . . . . . . . . . . . . . . . . . . Power Chain Reactions 2 | . . 1 . . . . . 1 . . . . . . . . . . Missiles Intercepted . | . . . . . . . . . . . . . . . . . . . Alert | -11 -10 -10 -9 -9 -9 -8 -8 -8 -8 -7 -7 -7 -6 -6 -5 -5 -5 -5 ------- Run | Scr Mat Min Mat Min Exi Min Mat Gar Mat Fac Gar Fac Fac Gar Fac Upp Upp War Peak Influence 732 | 5 138 137 36 181 . 265 286 732 389 116 439 281 107 322 247 . . . Initial 356 | . 3 17 . 12 . . 5 115 356 87 8 230 17 . 168 . . . Average 182 | 1 59 34 19 148 . 124 103 483 265 70 256 156 69 182 102 . . . Maximum Alert Level 3 | . . . . . . 1 1 3 1 . 2 1 . 1 1 . . . Low Security (%) 66 | 100 100 100 100 100 . 82 85 15 28 100 31 58 100 58 89 . . . Level 1 22 | . . . . . . 17 14 20 71 . 48 41 . 41 10 . . . Level 2 7 | . . . . . . . . 38 . . 19 . . . . . . . Level 3 3 | . . . . . . . . 26 . . . . . . . . . . Level 4 . | . . . . . . . . . . . . . . . . . . . Level 5 . | . . . . . . . . . . . . . . . . . . . High Security . | . . . . . . . . . . . . . . . . . . . Max Security . | . . . . . . . . . . . . . . . . . . . Squads Dispatched 11 | . 3 . . . . . 2 . 1 1 . 2 . . 2 . . . Investigation 3 | . 2 . . . . . . . . . . 1 . . . . . . Extermination 4 | . . . . . . . . . . 1 . 1 . . 2 . . . Reinforcement 3 | . 1 . . . . . 1 . 1 . . . . . . . . . Assault . | . . . . . . . . . . . . . . . . . . . Garrison 1 | . . . . . . . 1 . . . . . . . . . . . Intercept . | . . . . . . . . . . . . . . . . . . . Construction Impeded . | . . . . . . . . . . . . . . . . . . . Haulers Reinforced . | . . . . . . . . . . . . . . . . . . . Stealth | -11 -10 -10 -9 -9 -9 -8 -8 -8 -8 -7 -7 -7 -6 -6 -5 -5 -5 -5 --------- Run | Scr Mat Min Mat Min Exi Min Mat Gar Mat Fac Gar Fac Fac Gar Fac Upp Upp War Distress Signals 4 | . 2 . . . . . . . 1 . . . . . 1 . . . Communications Jammed 6 | . . . . . . . . . . . . . . . 6 . . . Distress Signals 6 | . . . . . . . . . . . . . . . 6 . . . Times Spotted 219 | . 16 12 3 6 . 15 28 27 8 1 27 5 5 28 12 14 8 4 Peak Tracking Total 6 | . 6 5 2 4 . 3 6 6 5 1 5 2 4 4 4 5 4 4 Tactical Retreats 24 | . . 3 . . . 1 2 7 1 . 7 . 1 1 . . 1 . Traps | -11 -10 -10 -9 -9 -9 -8 -8 -8 -8 -7 -7 -7 -6 -6 -5 -5 -5 -5 ------- Run | Scr Mat Min Mat Min Exi Min Mat Gar Mat Fac Gar Fac Fac Gar Fac Upp Upp War Traps Triggered 37 | . 3 . . . . . 4 8 . 2 5 3 . 5 . . 1 6 Indirectly . | . . . . . . . . . . . . . . . . . . . Trap Hack Attempts . | . . . . . . . . . . . . . . . . . . . Triggered . | . . . . . . . . . . . . . . . . . . . Disarmed . | . . . . . . . . . . . . . . . . . . . Reprogrammed . | . . . . . . . . . . . . . . . . . . . Reused . | . . . . . . . . . . . . . . . . . . . Traps Extracted . | . . . . . . . . . . . . . . . . . . . Installed . | . . . . . . . . . . . . . . . . . . . Triggered . | . . . . . . . . . . . . . . . . . . . Exploded 1 | . . . . . . . . 1 . . . . . . . . . . Machines | -11 -10 -10 -9 -9 -9 -8 -8 -8 -8 -7 -7 -7 -6 -6 -5 -5 -5 -5 ---------- Run | Scr Mat Min Mat Min Exi Min Mat Gar Mat Fac Gar Fac Fac Gar Fac Upp Upp War Machines Disabled 12 | . . 2 . . . . . 3 . . 2 1 . 4 . . . . Max in Single Turn 2 | . . 2 . . . . . 1 . . 1 1 . 1 . . . . Garrison Relay 9 | . . . . . . . . 3 . . 2 . . 4 . . . . Machines Sabotaged . | . . . . . . . . . . . . . . . . . . . Garrisons Compromised . | . . . . . . . . . . . . . . . . . . . Overloaded Fab Kills . | . . . . . . . . . . . . . . . . . . . Fab Network Shutdowns . | . . . . . . . . . . . . . . . . . . . Hacking | -11 -10 -10 -9 -9 -9 -8 -8 -8 -8 -7 -7 -7 -6 -6 -5 -5 -5 -5 --------- Run | Scr Mat Min Mat Min Exi Min Mat Gar Mat Fac Gar Fac Fac Gar Fac Upp Upp War Machines Accessed 25 | . . . 2 . 1 . 8 . 2 2 . 5 2 . 2 . 1 . Terminals 19 | . . . 2 . . . 7 . 2 1 . 4 1 . 2 . . . Fabricators . | . . . . . . . . . . . . . . . . . . . Repair Stations . | . . . . . . . . . . . . . . . . . . . Recycling Units 1 | . . . . . . . . . . . . 1 . . . . . . Scanalyzers . | . . . . . . . . . . . . . . . . . . . Garrison Access 3 | . . . . . . . 1 . . 1 . . 1 . . . . . Total Hacks 61 | . . . 2 . 1 . 27 . 5 6 . 9 5 . 5 . 1 . Successful 26 | . . . . . 1 . 11 . 3 5 . 2 2 . 1 . 1 . Failed 35 | . . . 2 . . . 16 . 2 1 . 7 3 . 4 . . . Catastrophic 9 | . . . 1 . . . 4 . 1 . . 3 . . . . . . Database Lockouts . | . . . . . . . . . . . . . . . . . . . Manual 42 | . . . 2 . 1 . 18 . 4 3 . 7 3 . 4 . . . Terminals 51 | . . . 2 . . . 26 . 5 2 . 7 4 . 5 . . . Fabricators . | . . . . . . . . . . . . . . . . . . . Repair Stations . | . . . . . . . . . . . . . . . . . . . Recycling Units 2 | . . . . . . . . . . . . 2 . . . . . . Scanalyzers . | . . . . . . . . . . . . . . . . . . . Garrison Access 6 | . . . . . . . 1 . . 4 . . 1 . . . . . Terminal Hacks 11 | . . . . . 1 . 5 . 2 1 . . 1 . . . 1 . Open Door 1 | . . . . . . . . . . . . . . . . . 1 . Level Access Points 2 | . . . . . . . 1 . 1 . . . . . . . . . Terminal Index 2 | . . . . . . . 1 . . . . . 1 . . . . . Unreport Threat 3 | . . . . . . . 2 . 1 . . . . . . . . . Recall Reinforcements 1 | . . . . . . . 1 . . . . . . . . . . . Hauler Manifests 1 | . . . . . . . . . . 1 . . . . . . . . EX-Prototype ID Bank 1 | . . . . . 1 . . . . . . . . . . . . . Fabricator Hacks . | . . . . . . . . . . . . . . . . . . . Repair Station Hacks . | . . . . . . . . . . . . . . . . . . . Recycling Unit Hacks 1 | . . . . . . . . . . . . 1 . . . . . . Report Inventory 1 | . . . . . . . . . . . . 1 . . . . . . Scanalyzer . | . . . . . . . . . . . . . . . . . . . Garrison Access Hacks 5 | . . . . . . . 1 . . 3 . . 1 . . . . . Unlock Access 3 | . . . . . . . 1 . . 1 . . 1 . . . . . Coupler Status 2 | . . . . . . . . . . 2 . . . . . . . . Unauthorized Hacks 9 | . . . . . . . 5 . 1 1 . 1 . . 1 . . . Terminals 8 | . . . . . . . 5 . 1 . . 1 . . 1 . . . Track 1 | . . . . . . . 1 . . . . . . . . . . . Assimilate 2 | . . . . . . . 2 . . . . . . . . . . . Botnet 5 | . . . . . . . 2 . 1 . . 1 . . 1 . . . Fabricators . | . . . . . . . . . . . . . . . . . . . Repair Stations . | . . . . . . . . . . . . . . . . . . . Recycling Units . | . . . . . . . . . . . . . . . . . . . Scanalyzers . | . . . . . . . . . . . . . . . . . . . Garrison Access 1 | . . . . . . . . . . 1 . . . . . . . . Restock 1 | . . . . . . . . . . 1 . . . . . . . . Data Cores Recovered . | . . . . . . . . . . . . . . . . . . . Used . | . . . . . . . . . . . . . . . . . . . Hacking Detections 20 | . . . 2 . . . 7 . 2 1 . 5 1 . 2 . . . Full Trace Events 1 | . . . . . . . . . . . . 1 . . . . . . Feedback Events 1 | . . . . . . . . . . . . 1 . . . . . . Corruption 1 | . . . . . . . . . . . . 1 . . . . . . Feedback Blocked . | . . . . . . . . . . . . . . . . . . . Robot Schematics Acquired . | . . . . . . . . . . . . . . . . . . . Robots Built . | . . . . . . . . . . . . . . . . . . . Matter . | . . . . . . . . . . . . . . . . . . . Time . | . . . . . . . . . . . . . . . . . . . Total Robot Build Rating . | . . . . . . . . . . . . . . . . . . . Part Schematics Acquired . | . . . . . . . . . . . . . . . . . . . Parts Built . | . . . . . . . . . . . . . . . . . . . Matter . | . . . . . . . . . . . . . . . . . . . Time . | . . . . . . . . . . . . . . . . . . . Total Part Build Rating . | . . . . . . . . . . . . . . . . . . . Parts Repaired . | . . . . . . . . . . . . . . . . . . . Time . | . . . . . . . . . . . . . . . . . . . Parts Recycled . | . . . . . . . . . . . . . . . . . . . Recycled Matter . | . . . . . . . . . . . . . . . . . . . Retrieved Matter . | . . . . . . . . . . . . . . . . . . . Retrieved Components . | . . . . . . . . . . . . . . . . . . . Parts Scanalyzed . | . . . . . . . . . . . . . . . . . . . Part Schematics Acquired . | . . . . . . . . . . . . . . . . . . . Parts Damaged . | . . . . . . . . . . . . . . . . . . . Bothacking | -11 -10 -10 -9 -9 -9 -8 -8 -8 -8 -7 -7 -7 -6 -6 -5 -5 -5 -5 ------------ Run | Scr Mat Min Mat Min Exi Min Mat Gar Mat Fac Gar Fac Fac Gar Fac Upp Upp War Used RIF Installer 3 | . . . . . . . . 1 . . 1 . . 1 . . . . Coupler Efficiency 1 | . . . . . . . . . . . 1 . . . . . . . Watcher Feeds 1 | . . . . . . . . . . . . . . 1 . . . . Robots Hacked 34 | . . . . . . . . . . . 4 2 . 17 4 4 3 . Non-combat 4 | . . . . . . . . . . . . . . . 4 . . . Combat 30 | . . . . . . . . . . . 4 2 . 17 . 4 3 . Robot Hacks Applied 39 | . . . . . . . . . . . 5 2 1 17 7 4 3 . parse_system 2 | . . . . . . . . . . . 1 . 1 . . . . . no_distress 3 | . . . . . . . . . . . . . . . 3 . . . find_chute 1 | . . . . . . . . . . . . . . . 1 . . . ignore_parts 1 | . . . . . . . . . . . . . . . 1 . . . find_station 1 | . . . . . . . . . . . . . . . 1 . . . overload_power 1 | . . . . . . . . . . . 1 . . . . . . . amplify_resonance 2 | . . . . . . . . . . . 1 . . 1 . . . . formatsys_high 28 | . . . . . . . . . . . 2 2 . 16 1 4 3 . Relay Couplers Released 39 | . . . . . . . . 12 . . 8 . . 19 . . . . Machine Destruction 39 | . . . . . . . . 12 . . 8 . . 19 . . . . Attached 17 | . . . . . . . . . . . 3 . 1 8 1 1 1 2 Robots Rewired . | . . . . . . . . . . . . . . . . . . . Allies Hacked . | . . . . . . . . . . . . . . . . . . . Hacks Repelled . | . . . . . . . . . . . . . . . . . . . Allies | -11 -10 -10 -9 -9 -9 -8 -8 -8 -8 -7 -7 -7 -6 -6 -5 -5 -5 -5 -------- Run | Scr Mat Min Mat Min Exi Min Mat Gar Mat Fac Gar Fac Fac Gar Fac Upp Upp War Total Allies 33 | . . 3 . . . . 1 . . . 2 3 . 16 1 4 3 . Largest Group 13 | . . 3 3 1 1 1 1 . . . 1 3 3 12 13 11 6 . Highest-Rated Group 290 | . . 40 40 16 16 16 9 . . . 29 95 95 264 290 285 175 . Highest-Rated Ally 49 | . . 16 16 16 16 16 9 . . . 29 32 32 41 41 49 41 . Total Orders 36 | . . . 2 . . . . . . . 1 2 . 19 6 5 1 . STAY 21 | . . . 1 . . . . . . . . 1 . 12 4 2 1 . FOLLOW 15 | . . . 1 . . . . . . . 1 1 . 7 2 3 . . Ally Attacks 149 | . . 13 6 6 . . . . . . 15 3 5 21 20 40 20 . Total Damage 2659 | . . 72 59 63 . . . . . . 304 119 111 558 295 679 399 . Kills 31 | . . 1 1 1 . . . . . . 2 1 2 4 1 13 5 . Allies Corrupted . | . . . . . . . . . . . . . . . . . . . Allies Melted 1 | . . . . . . . . . . . 1 . . . . . . . Intel | -11 -10 -10 -9 -9 -9 -8 -8 -8 -8 -7 -7 -7 -6 -6 -5 -5 -5 -5 ------- Run | Scr Mat Min Mat Min Exi Min Mat Gar Mat Fac Gar Fac Fac Gar Fac Upp Upp War Robot Analysis Total . | . . . . . . . . . . . . . . . . . . . Derelict Logs Recovered 5 | . . 1 . . . . . . . . . . . . . 1 3 . Drone Launches . | . . . . . . . . . . . . . . . . . . . Drone Recoveries . | . . . . . . . . . . . . . . . . . . . Exploration | -11 -10 -10 -9 -9 -9 -8 -8 -8 -8 -7 -7 -7 -6 -6 -5 -5 -5 -5 ------------- Run | Scr Mat Min Mat Min Exi Min Mat Gar Mat Fac Gar Fac Fac Gar Fac Upp Upp War Turns Passed 15609 | 64 578 661 243 154 561 967 1931 1775 559 546 1174 975 411 1666 1258 1057 931 98 Spaces Moved 8055 | 43 292 365 120 68 308 486 964 743 273 351 604 596 231 922 611 505 515 58 Core 7 | 6 . . . . . . . . . . . . . . . . . 1 Treads 1881 | . . . . . . . 655 499 . . . . . . 88 426 213 . Legs 6165 | 37 292 365 120 68 308 486 309 244 273 351 604 596 231 922 523 79 302 55 Wheels 2 | . . . . . . . . . . . . . . . . . . 2 Hover . | . . . . . . . . . . . . . . . . . . . Flight . | . . . . . . . . . . . . . . . . . . . Fastest Speed 50 | 50 120 150 150 180 180 180 150 150 150 150 150 150 153 150 150 180 150 130 Average Speed 165 | 112 156 150 169 180 180 180 161 185 150 150 150 151 154 153 179 201 171 162 Slowest Speed 900 | 120 180 180 180 180 180 180 200 270 150 150 210 156 156 155 200 240 240 900 Overloaded Moves . | . . . . . . . . . . . . . . . . . . . Propulsion Burnouts . | . . . . . . . . . . . . . . . . . . . Robots Hopped . | . . . . . . . . . . . . . . . . . . . Cave-ins Triggered 1 | . . 1 . . . . . . . . . . . . . . . . Exploration Rate (%) 44 | 3 66 77 15 18 71 81 67 72 23 7 78 18 7 80 13 72 68 18 Regions Visited 18 Branch Regions 7 Pre-discovered Areas 1 | . . . . . . . . . . . . . . . . . 1 . Known Exits Taken 6 | . . . . . . . 1 . 1 1 . 1 1 . 1 . . . Unknown Exits Taken 9 | 1 1 1 1 1 1 1 . . . . . . . . . 1 1 . Scrap Searched 8 | . . 1 . . . 1 . . . . . . . . . 4 2 . Spaces Dug 23 | . . . . . . . 13 . 6 . . 1 1 . 2 . . . Terrain Destroyed 137 | . . 21 . 14 . 35 52 2 6 . . 1 1 1 2 . 2 . Melee 23 | . . . . . . . 13 . 6 . . 1 1 . 2 . . . Projectile 3 | . . . . . . . . . . . . . . 1 . . 2 . AOE 111 | . . 21 . 14 . 35 39 2 . . . . . . . . . . Terrain Rammed . | . . . . . . . . . . . . . . . . . . . Walls Destroyed . | . . . . . . . . . . . . . . . . . . . Machines Disabled . | . . . . . . . . . . . . . . . . . . . Actions | -11 -10 -10 -9 -9 -9 -8 -8 -8 -8 -7 -7 -7 -6 -6 -5 -5 -5 -5 --------- Run | Scr Mat Min Mat Min Exi Min Mat Gar Mat Fac Gar Fac Fac Gar Fac Upp Upp War Total 9698 | 53 366 431 151 94 317 557 1255 1001 381 372 773 649 269 1120 746 544 557 62 Wait 683 | . 29 9 8 7 1 46 188 101 70 . 48 11 1 73 78 7 6 . Move 8040 | 42 291 364 119 67 307 485 964 742 272 351 603 595 231 921 610 504 514 58 Hop . | . . . . . . . . . . . . . . . . . . . Pick Up 93 | 4 6 2 7 6 2 2 13 14 1 1 8 5 3 8 5 4 2 . Fast Attach 75 | 6 3 3 4 . . . 8 9 . 5 6 5 2 7 6 4 7 . Attach 40 | . 1 4 2 . 1 . 3 7 . . 5 1 2 5 4 1 . 4 Detach 13 | . . . . . 1 . . 1 . . . . 2 3 3 1 2 . Swap 112 | . 5 3 2 5 2 4 13 10 8 . 14 10 9 16 3 4 4 . Drop 123 | . 5 1 1 4 3 4 20 22 5 5 8 9 8 8 5 7 8 . Fire 415 | 1 26 45 7 5 . 16 30 83 19 . 55 12 10 50 30 12 14 . Melee 36 | . . . . . . . 16 1 6 . 5 1 1 4 2 . . . Ram . | . . . . . . . . . . . . . . . . . . . Kick 1 | . . . 1 . . . . . . . . . . . . . . . Crush . | . . . . . . . . . . . . . . . . . . . Escape Stasis 67 | . . . . . . . . 11 . 10 21 . . 25 . . . . Rewire . | . . . . . . . . . . . . . . . . . . . Trap . | . . . . . . . . . . . . . . . . . . . Miscellaneous . | . . . . . . . . . . . . . . . . . . . Route ------- -11/Scrapyard -10/Materials (discovered 3 exits: *Mat x2 / [*Min]) -10/Mines -9/Materials -9/Mines -9/Exiles -8/Mines -8/Materials (discovered 5 exits: Fac x3 / [*Sto] / Gar) -8/Garrison (discovered 3 exits: *Mat x3) -8/Materials (discovered 3 exits: *Fac x3) -7/Factory -7/Garrison (discovered 3 exits: *Fac x3) -7/Factory (discovered 2 exits: *Fac / *Low) -6/Factory -6/Garrison (discovered 2 exits: *Fac x2) -5/Factory -5/Upper Caves -5/Upper Caves (discovered 2 exits: Fac / [*War]) -5/Warlord History --------- Turn | Location | Event 15 | -11/Scrapyard | Discovered new exit (range 15) 65 | -11/Scrapyard | Entered Materials 167 | -10/Materials | Discovered new exit (range 9) 315 | -10/Materials | Build established: Mutant 429 | -10/Materials | Discovered new exit (range 4) 612 | -10/Materials | Discovered new exit (range 16) 643 | -10/Materials | Entered Mines 704 | -10/Mines | Lost 3 parts (3w) 767 | -10/Mines | Learned Materials emergency access door positions 849 | -10/Mines | Assembled infested the area 854 | -10/Mines | Assisted by a Guerilla fighting off Assembled 896 | -10/Mines | YI-UF0 nonchalantly dropped a Grenade Launcher on the ground 955 | -10/Mines | Crushed by falling debris 955 | -10/Mines | Core integrity fell below 50% 1052 | -10/Mines | Core integrity fell below 20% 1100 | -10/Mines | System corruption reached 10% 1162 | -10/Mines | Lost 3 parts (1p2n) 1181 | -10/Mines | Discovered new exit (range 16) 1241 | -10/Mines | Assisted by bots powering up and referring to "LRC-V3" 1304 | -10/Mines | Entered Materials 1304 | -9/Materials | Accompanied by 3 allies 1304 | -9/Materials | Evolved 2 slots: Utility x2 1406 | -9/Materials | Lost 3 parts (1p1n1w) 1451 | -9/Materials | Discovered new exit (range 12) 1547 | -9/Materials | Entered Mines 1547 | -9/Mines | Accompanied by 1 ally 1606 | -9/Mines | Build established: Scavenger-Mutant 1661 | -9/Mines | Met a Derelict bent on vengeance 1685 | -9/Mines | Deemed a non-threat by the Exiles lab entrance 1687 | -9/Mines | Discovered new exit (range 5) 1701 | -9/Mines | Entered Exiles 1701 | -9/Exiles | Accompanied by 1 ally 1748 | -9/Exiles | Met 8R-AWN 1777 | -9/Exiles | Met EX-HEX 1869 | -9/Exiles | Met EX-DEC 1950 | -9/Exiles | Met EX-BIN 1971 | -9/Exiles | Aligned with FarCom system 1973 | -9/Exiles | Given EX-Vault access code 2020 | -9/Exiles | Opened EX-Vault 2034 | -9/Exiles | Found Superbattery 2076 | -9/Exiles | Warned to stay clear of 0b10 Research branches 2236 | -9/Exiles | Discovered new exit (range 15) 2262 | -9/Exiles | Left Exiles lab with Superbattery 2262 | -9/Exiles | Entered Mines 2262 | -8/Mines | Accompanied by 1 ally 3201 | -8/Mines | Discovered new exit (range 16) 3229 | -8/Mines | Entered Materials 3229 | -8/Materials | Evolved 2 slots: Propulsion x1, Utility x1 3253 | -8/Materials | Discovered new exit (range 16) 3558 | -8/Materials | Build established: Scavenger-Skirmisher 3707 | -8/Materials | Garrison activated, responded to threat 3886 | -8/Materials | Identified exit to Factory 4330 | -8/Materials | Build established: Scavenger-Mutant 5160 | -8/Materials | Identified exit to Garrison 5160 | -8/Materials | Entered Garrison 5168 | -8/Garrison | Installed Relay Interface Framework 5230 | -8/Garrison | Triggered checkpoint 5247 | -8/Garrison | Garrison Relay disabled 5498 | -8/Garrison | Triggered checkpoint 5649 | -8/Garrison | Discovered new exit (range 10) 5753 | -8/Garrison | Triggered checkpoint 5762 | -8/Garrison | Triggered checkpoint 5876 | -8/Garrison | Discovered new exit (range 17) 5946 | -8/Garrison | Triggered checkpoint 6013 | -8/Garrison | Garrison Relay disabled 6234 | -8/Garrison | Triggered checkpoint 6286 | -8/Garrison | Lost 4 parts (1p1n1u1w) 6320 | -8/Garrison | Garrison Relay disabled 6378 | -8/Garrison | Build established: Bothacker-Mutant 6447 | -8/Garrison | Core integrity fell below 50% 6494 | -8/Garrison | Discovered new exit (range 14) 6935 | -8/Garrison | Entered Materials 7494 | -8/Materials | Entered Factory 7494 | -7/Factory | Evolved 2 slots: Utility x2 8040 | -7/Factory | Identified exit to Garrison 8040 | -7/Factory | Entered Garrison 8113 | -7/Garrison | Triggered checkpoint 8162 | -7/Garrison | Garrison Relay disabled 8560 | -7/Garrison | Triggered checkpoint 8630 | -7/Garrison | Lost 5 parts (1p1n1u2w) 8654 | -7/Garrison | Triggered checkpoint 8716 | -7/Garrison | Discovered new exit (range 19) 8758 | -7/Garrison | Expanded RIF knowledge: Coupler Efficiency 8880 | -7/Garrison | Discovered new exit (range 12) 8945 | -7/Garrison | Triggered checkpoint 8981 | -7/Garrison | Garrison Relay disabled 9120 | -7/Garrison | Discovered new exit (range 12) 9214 | -7/Garrison | Entered Factory 9276 | -7/Factory | Discovered new exit (range 9) 9291 | -7/Factory | Identified exit to Factory 9435 | -7/Factory | Allied Derelicts emerged from ambush trap array 9974 | -7/Factory | Discovered new exit (range 4) 9981 | -7/Factory | Identified exit to Lower Caves 10189 | -7/Factory | Entered another Factory area 10189 | -6/Factory | Accompanied by 3 allies 10189 | -6/Factory | Evolved 2 slots: Utility x2 10600 | -6/Factory | Identified exit to Garrison 10600 | -6/Factory | Entered Garrison 10600 | -6/Garrison | Accompanied by 1 ally 10736 | -6/Garrison | Garrison Relay disabled 10758 | -6/Garrison | Triggered checkpoint 11025 | -6/Garrison | Triggered checkpoint 11068 | -6/Garrison | Triggered checkpoint 11198 | -6/Garrison | Triggered checkpoint 11217 | -6/Garrison | Spotted B-75 Beast 11217 | -6/Garrison | Spotted B-75 Beast 11265 | -6/Garrison | Discovered new exit (range 21) 11294 | -6/Garrison | Identified exit to Factory 11303 | -6/Garrison | Expanded RIF knowledge: Patrol Navigation 11334 | -6/Garrison | Triggered checkpoint 11394 | -6/Garrison | Triggered checkpoint 11554 | -6/Garrison | Triggered checkpoint 11576 | -6/Garrison | Garrison Relay disabled 11773 | -6/Garrison | Discovered exit to Factory (range 9) 11836 | -6/Garrison | Triggered checkpoint 11875 | -6/Garrison | Garrison Relay disabled 12164 | -6/Garrison | Garrison Relay disabled 12266 | -6/Garrison | Entered Factory 12266 | -5/Factory | Accompanied by 12 allies 12266 | -5/Factory | Evolved 2 slots: Utility x2 12300 | -5/Factory | Discovered new exit (range 19) 13132 | -5/Factory | P-70 Sage assimilated allied Administrator 6a 13373 | -5/Factory | Lost 4 parts (2n1u1w) 13515 | -5/Factory | Identified exit to Upper Caves 13524 | -5/Factory | Entered Upper Caves 13524 | -5/Upper Caves | Accompanied by 11 allies 13723 | -5/Upper Caves | Attracted the attention of an 0b10 checkpoint 14150 | -5/Upper Caves | Learned Factory security intel 14516 | -5/Upper Caves | Discovered new exit (range 19) 14581 | -5/Upper Caves | Entered another Upper Caves area 14581 | -5/Upper Caves | Accompanied by 6 allies 14818 | -5/Upper Caves | Encountered a Warlord checkpoint 15139 | -5/Upper Caves | Learned Factory terminal intel 15378 | -5/Upper Caves | Identified exit to Factory 15419 | -5/Upper Caves | Learned location of Warlord (-5) 15437 | -5/Upper Caves | Discovered new exit (range 21) 15512 | -5/Upper Caves | Entered Warlord 15521 | -5/Warlord | System corruption reached 10% 15565 | -5/Warlord | System corruption cleaned by Quarantine Array 15570 | -5/Warlord | RIF detected upon attempting to enter Warlord's base 15570 | -5/Warlord | Attacked by Warlord forces 15587 | -5/Warlord | Spotted 13-OM5(B) 15587 | -5/Warlord | Spotted OX-VRG(B) 15598 | -5/Warlord | Core integrity fell below 50% 15609 | -5/Warlord | Core integrity fell below 20% 15610 | -5/Warlord | Destroyed by 1V-9CG(Y) with Heavy Autocannon Last Messages --------------- 15595_ Flexi-carbon Leg destroyed. 15595_ Carbon-fiber Leg destroyed. 15595_ Critical hit. 15595_ KE Penetrator destroyed. 15597_ Triggered Fire Trap. 15597_ Burning plasma bursts from the floor. 15598_ Knocked back. 15598_ Arm. Wheel destroyed. 15601_ Penetrated by Slug. 15601_ Adv. Heat Sink destroyed. 15601_ System Quarantine Field Array disabled. 15602_ Imp. Remote Datajack destroyed. 15602_ Knocked back. 15603_ Overheating: Relay Coupler [Swarmer] damaged (-7). 15603_ Overheating: Imp. Core Analyzer damaged (-12). 15603_ Overheating: Adv. Terrain Scan Processor damaged (-19). 15603_ Overheating: Relay Coupler [Sentry] damaged (-7). 15604_ Knocked back. 15606_ Lrg. Storage Unit destroyed. 15608_ Knocked back. Map ----- +----------------------------------------------------+ | ?????????????????????????????????????????????????? | | ?????????????????????????????????????????????????? | | ?????????????????????????????????????????????????? | | ?????????????????????????????????????????????????? | | ?????????????????????????????????????????????????? | | ?????????????????????????????????????????????????? | | ?????????????????????????????????????????????????? | | ?????????????????????????????????????????????????? | | ?????????????????????????????? ?????????????????? | | ??????????????????????????????? ?????????????????? | | ???????????????????????????????? ????????????????? | | ????????????????????????????????? ???????????????? | | ?????????????????????????????????# ?????##???????? | | ?????????????????????????????????? ??### ???????? | | ??????????????????????????????????? ?? ??????## | | ???????????????????????????????????? ### ?????? | | ????????????????#""#????????????????? ?????? | | ??????#?????????#""#?????????????????# #????? | | ??????# ????????#""#?????????????????# ????? | | ??????# ???????#""#??????????????????# ##??? | | ??????# ??????#""#???????????????????# #??? | | ???#### #??####""#####????????????????# ##?? | | ???# ?# "" "############??????# ### | | ???# # "" """"""""""""#???????# # # | | #+## BB ; "" ""!"""""""""#?####?## #? | | ;^ ^ *]@ ### ### ## | | ; [ ^+ ## # | | " ;^ + #### # | | " ; ^ ^ #### ##??# # | | " # B Y; "" """ """"""""#??## #???# # | | ???# Y # "" """"""""""""#???# #?### | | ???# ?# "" "############???# #### # | | ???#### ##?####""#####??????????????# ### | | ??????# ??????#""#?????????????????? #"# | | ?????# ???????#""#????????????????? ##" # | | ?????## ????????#""#????????????????# ###" " | | ??????#?????????#""#???????????????? ??##" "# | | ????????????????#""????????????????# ???##" ## | | ???????????????????????????????????# #???# " #? | | ???????????????????????????????????# ????# "" "# | | ???????????????????????????????????# ????#### # | | ??????????????????????????????????? ?????## # | | ??????????????????????????????????? ?????# # | | ?????????????????????????????????? #??????# # | | ?????????????????????????????????? #???????# # | | ???????????????????????????????????????????# # | | ???????????????????????????????????????????## ## | | ???????????????????????????????????????????? #? | | ???????????????????????????????????????????? ##? | | ???????????????????????????????????????????#####?? | +----------------------------------------------------+ Best States ------------- Heat Dissipation 85 Coolant Potential 65 Energy Generation 18 Energy Capacity 2160 Matter Stores 300 Matter Capacity 300 Sight Range 22 Terrain Scan Range 20 Terrain Scan Density 210 Jamming Range 12 Power Amplification 20 Armor Coverage 600 Utility Shielding 33 Evasion (%) 40 Core Analysis 8 Recoil Reduction 3 Offensive Hacking 12 Defensive Hacking 10 Relay Coupler Types 125 Relay Coupler Value 4 Item Schematics ----------------- None Robot Schematics ------------------ None Fabricated ------------ Nothing Alien Tech Used ----------------- None Achievements -------------- None Challenges ------------ None Game ------ Seed HugeSwarmLance Manual? 0 Play Time 02:00:54 Cumulative 123.0 hours Start 2021.02.09 @ 19:12:44 End 2021.02.09 @ 21:14:03 Sessions 1 Manual Loads 0 Difficulty Rogue Special Mode None Game No. 119 Rogue 119 Adventurer 0 Explorer 0 Win Type - Total 4 Types 3/0/0/1/0/0/0/0/0 Lore% 62 Gallery% 65 Achievement% 51 Wizard Run 0 Options --------- ASCII 0 Keyboard 1 Movement Vi Keybinds 0 Fullscreen 1 Font 18/X11 Map View 76x50 Tactical HUD 1 Map Filters NONE Filters NONE Steam 1 RUN: 44d79acf-f662-44fb-b5fb-2ba1ce19b198